{"text_format":"1","workbook":"xlsx","n_sheets":3,"sheets":["selecteer de teksten","geselecteerde teksten","omzettingstabel"],"not_rendered":{"charts":0,"images":2,"macros":1,"external_links":0,"defined_names":6,"comments":0,"pivot_tables":0},"unopened":[],"bounds":{"document_bytes":16777216,"sheet_cells":100000,"rows_first":2000,"rows_last":500,"rows_between":2000,"halvings":0,"cell_chars":16384,"cell_head_chars":4096},"cells_cut":0,"cells_raw":0,"read":"whole","date_system":"1900"}

{"sheet":"selecteer de teksten","index":0,"n_rows":157,"n_cols":21,"rows_kept":157,"cut":false,"hidden":false,"merged":[[2,14,2,15],[8,14,8,15]]}
[null,"Frans havo"]
[]
[null,null,"jaar","tekst","omschrijving","indicatie moeilijkheidsgraad","P","L","N",null,"ü",null,null,null,"grenswaarden",null,null,"P","L","N","bijdrage"]
[null,null,2011,1,"Café de Flore",{"$f":"IF(G4>P$7,\"makkelijke tekst\",IF(G4<P$6,\"moeilijke tekst\",\"tekst van gemiddelde moeilijkheid\"))","v":"tekst van gemiddelde moeilijkheid"},63.555555555555557,2,0.58000000000000007,null,null,null,null,null,"gemiddelde",{"$f":"AVERAGE(G4:G158)","v":62.76391053391054},null,{"$f":"IF($K4=\"ü\",$G4,\"\")","v":""},{"$f":"IF($K4=\"ü\",$H4,\"\")","v":""},{"$f":"IF($K4=\"ü\",$I4,\"\")","v":""},{"$f":"IF($K4=\"ü\",$G4*$H4,\"\")","v":""}]
[null,null,2011,2,"Mariée de force à 8 ans, elle obtient le divorce",{"$f":"IF(G5>P$7,\"makkelijke tekst\",IF(G5<P$6,\"moeilijke tekst\",\"tekst van gemiddelde moeilijkheid\"))","v":"tekst van gemiddelde moeilijkheid"},64.555555555555557,3,0.49000000000000021,null,null,null,null,null,"standaarddeviatie",{"$f":"STDEVA(G4:G158)","v":13.886416838083116},null,"","","",""]
[null,null,2011,3,"Vive les devoirs!?",{"$f":"IF(G6>P$7,\"makkelijke tekst\",IF(G6<P$6,\"moeilijke tekst\",\"tekst van gemiddelde moeilijkheid\"))","v":"tekst van gemiddelde moeilijkheid"},73.555555555555557,4,-0.32000000000000028,null,null,null,null,null,"M-S",{"$f":"P4-P5","v":48.877493695827425},null,"","","",""]
[null,null,2011,4,"Un look sculpté au bistouri?",{"$f":"IF(G7>P$7,\"makkelijke tekst\",IF(G7<P$6,\"moeilijke tekst\",\"tekst van gemiddelde moeilijkheid\"))","v":"makkelijke tekst"},83.555555555555557,2,-1.2199999999999998,null,null,null,null,null,"M+S",{"$f":"P4+P5","v":76.650327371993654},null,"","","",""]
[null,null,2011,5,"Souvenirs de vacances","tekst van gemiddelde moeilijkheid",54.555555555555557,6,1.3899999999999997,null,null,null,null,null,null,null,null,"","","",""]
[null,null,2011,6,"Au secours, ma soeur réussit mieux que moi!","tekst van gemiddelde moeilijkheid",66.555555555555557,7,0.30999999999999961,null,null,null,null,null,"gewogen P en N",null,null,"","","",""]
[null,null,2011,7,"Les pires touristes du monde!","makkelijke tekst",93.555555555555557,2,-2.12,null,null,null,null,null,"totale bijdrage",{"$f":"SUM(U4:V158)","v":0},null,"","","",""]
[null,null,2011,8,"Le café, symbole français, souffre","moeilijke tekst",44.555555555555557,6,2.29,null,null,null,null,null,"gem sc",{"$f":"P10/100","v":0},null,"","","",""]
[null,null,2011,9,"Une cabane au Canada","tekst van gemiddelde moeilijkheid",50.555555555555557,3,1.75,null,null,null,null,null,"totale lengte",{"$f":"SUM(S4:S158)","v":0},null,"","","",""]
[null,null,2011,10,"Le cannabis réservé aux fumeurs locaux?","makkelijke tekst",93.555555555555557,2,-2.12,null,null,null,null,null,"9*P",{"$f":"IF(P12=0,0,9*P11/P12)","v":0},null,"","","",""]
[null,null,2011,11,"Le «colis-voiturage»","tekst van gemiddelde moeilijkheid",73.555555555555557,6,-0.32000000000000028,null,null,null,null,null,"n-term",{"$f":"IF(P12=0,1,6.3-P13)","v":1},null,"","","",""]
[null,null,2011,12,"Jumeaux: la vie en duo?","tekst van gemiddelde moeilijkheid",76.555555555555557,3,-0.58999999999999986,null,null,null,null,null,"afgeronde N",{"$f":"ROUND(P14,1)","v":1},null,"","","",""]
[null,null,2011,13,"Rollers à grandes roues","tekst van gemiddelde moeilijkheid",71.555555555555557,1,-0.14000000000000057,null,null,null,null,null,null,null,null,"","","",""]
[null,null,2011,14,"Ils utilisent une baguette","tekst van gemiddelde moeilijkheid",62.555555555555557,1,0.66999999999999993,null,null,null,null,null,null,null,null,"","","",""]
[null,null,2011,15,"Faut-il taxer les personnes en surpoids qui prennent deux places dans l’avion?","tekst van gemiddelde moeilijkheid",71.555555555555557,1,-0.14000000000000057,null,null,null,null,null,null,null,null,"","","",""]
[null,null,2012,1,"Menhirs et dolmens","tekst van gemiddelde moeilijkheid",60.222222222222221,2,0.87999999999999989,null,null,null,null,null,null,null,null,"","","",""]
[null,null,2012,2,"Les fromages à l’attaque","moeilijke tekst",42.222222222222221,4,2.5,null,null,null,null,null,null,null,null,"","","",""]
[null,null,2012,3,"La folie du furet","tekst van gemiddelde moeilijkheid",75.222222222222229,5,-0.46999999999999975,null,null,null,null,null,null,null,null,"","","",""]
[null,null,2012,4,"Un garçon pas comme les autres","moeilijke tekst",42.222222222222221,5,2.5,null,null,null,null,null,null,null,null,"","","",""]
[null,null,2012,5,"Maroc: le français revient en force","tekst van gemiddelde moeilijkheid",53.222222222222221,7,1.5099999999999998,null,null,null,null,null,null,null,null,"","","",""]
[null,null,2012,6,"Une aventure à ne jamais oublier","tekst van gemiddelde moeilijkheid",55.222222222222221,5,1.33,null,null,null,null,null,null,null,null,"","","",""]
[null,null,2012,7,"Le grand gaspillage alimentaire","tekst van gemiddelde moeilijkheid",50.222222222222221,7,1.7800000000000002,null,null,null,null,null,null,null,null,"","","",""]
[null,null,2012,8,"Ibrahim, 20 ans, surfeur","moeilijke tekst",44.222222222222221,4,2.3199999999999998,null,null,null,null,null,null,null,null,"","","",""]
[null,null,2012,9,"Les marques font leur show dans la rue","tekst van gemiddelde moeilijkheid",67.222222222222229,5,0.25,null,null,null,null,null,null,null,null,"","","",""]
[null,null,2012,10,"Jo-Wilfried Tsonga, la positive attitude","tekst van gemiddelde moeilijkheid",73.222222222222229,3,-0.29000000000000004,null,null,null,null,null,null,null,null,"","","",""]
[null,null,2012,11,"Le «french kiss» interdit à Londres","tekst van gemiddelde moeilijkheid",76.222222222222229,1,-0.5600000000000005,null,null,null,null,null,null,null,null,"","","",""]
[null,null,2012,12,"Alain Robert, le «Spider-Man» français","tekst van gemiddelde moeilijkheid",59.222222222222221,1,0.96999999999999975,null,null,null,null,null,null,null,null,"","","",""]
[null,null,2013,1,"Sponsoriser son mariage","makkelijke tekst",79.222222222222229,2,-0.83000000000000007,null,null,null,null,null,null,null,null,"","","",""]
[null,null,2013,2,"«Un garçon, ça pleure pas, une fille, c’est nul en maths»","tekst van gemiddelde moeilijkheid",65.782222222222231,4,0.37959999999999905,null,null,null,null,null,null,null,null,"","","",""]
[null,null,2013,3,"Demain, le Grand Paris","tekst van gemiddelde moeilijkheid",63.002222222222223,6,0.62980000000000036,null,null,null,null,null,null,null,null,"","","",""]
[null,null,2013,4,"La lumière des femmes","tekst van gemiddelde moeilijkheid",63.632222222222218,6,0.57310000000000016,null,null,null,null,null,null,null,null,"","","",""]
[null,null,2013,5,"Les enfants du cirque Shems’y","tekst van gemiddelde moeilijkheid",58.62222222222222,5,1.024,null,null,null,null,null,null,null,null,"","","",""]
[null,null,2013,6,"Ils se mettent à nu","tekst van gemiddelde moeilijkheid",57.082222222222221,7,1.1625999999999994,null,null,null,null,null,null,null,null,"","","",""]
[null,null,2013,7,"Professeur, un métier de rêve?","tekst van gemiddelde moeilijkheid",66.722222222222229,4,0.29499999999999993,null,null,null,null,null,null,null,null,"","","",""]
[null,null,2013,8,"«L’Etat, c’est moi!»","moeilijke tekst",47.232222222222219,3,2.0491000000000001,null,null,null,null,null,null,null,null,"","","",""]
[null,null,2013,9,"Les écoles au Moyen-Age","tekst van gemiddelde moeilijkheid",51.662222222222219,5,1.6504000000000003,null,null,null,null,null,null,null,null,"","","",""]
[null,null,2013,10,"Un graffeur français échappe à la prison","makkelijke tekst",78.222222222222229,1,-0.74000000000000021,null,null,null,null,null,null,null,null,"","","",""]
[null,null,2013,11,"L’avenir des cartes postales","moeilijke tekst",33.222222222222221,2,3.3099999999999996,null,null,null,null,null,null,null,null,"","","",""]
[null,null,2013,12,"Les pigeons jouent les critiques d’art","tekst van gemiddelde moeilijkheid",53.422222222222224,3,1.492,null,null,null,null,null,null,null,null,"","","",""]
[null,null,2013,13,"Le tee-shirt","moeilijke tekst",37.222222222222221,2,2.9499999999999997,null,null,null,null,null,null,null,null,"","","",""]
[null,null,2014,1,"Vive Wikipédia?!","tekst van gemiddelde moeilijkheid",66.833333333333329,2,0.28500000000000014,null,null,null,null,null,null,null,null,"","","",""]
[null,null,2014,2,"Le cimetière du Père-Lachaise","makkelijke tekst",80.713333333333324,2,-0.96419999999999995,null,null,null,null,null,null,null,null,"","","",""]
[null,null,2014,3,"L’Ecole de danse de l’Opéra de Paris","tekst van gemiddelde moeilijkheid",74.25333333333333,8,-0.38279999999999959,null,null,null,null,null,null,null,null,"","","",""]
[null,null,2014,4,"Des voyages pas comme les autres","makkelijke tekst",78.153333333333322,4,-0.73379999999999868,null,null,null,null,null,null,null,null,"","","",""]
[null,null,2014,5,"L’hygiène au temps du Roi-Soleil","tekst van gemiddelde moeilijkheid",62.43333333333333,5,0.68100000000000005,null,null,null,null,null,null,null,null,"","","",""]
[null,null,2014,6,"La pétanque cherche sa voie","tekst van gemiddelde moeilijkheid",61.103333333333332,3,0.80069999999999997,null,null,null,null,null,null,null,null,"","","",""]
[null,null,2014,7,"Pop française: Zaz","tekst van gemiddelde moeilijkheid",52.663333333333327,4,1.5603000000000007,null,null,null,null,null,null,null,null,"","","",""]
[null,null,2014,8,"Bruxelles, capitale de l’Art nouveau","tekst van gemiddelde moeilijkheid",50.743333333333325,7,1.7331000000000003,null,null,null,null,null,null,null,null,"","","",""]
[null,null,2014,9,"L’incroyable boom des produits halal","tekst van gemiddelde moeilijkheid",66.873333333333335,7,0.28139999999999965,null,null,null,null,null,null,null,null,"","","",""]
[null,null,2014,10,"Les masseurs de rue ","tekst van gemiddelde moeilijkheid",71.903333333333322,5,-0.17129999999999868,null,null,null,null,null,null,null,null,"","","",""]
[null,null,2014,11,"Voilà de quoi surprendre","tekst van gemiddelde moeilijkheid",71.333333333333329,1,-0.12000000000000011,null,null,null,null,null,null,null,null,"","","",""]
[null,null,2014,12,"Que pensez-vous du fast food?","tekst van gemiddelde moeilijkheid",61.333333333333329,1,0.78000000000000025,null,null,null,null,null,null,null,null,"","","",""]
[null,null,2015,1,"Le garçon qui valait 30 millions de dollars","tekst van gemiddelde moeilijkheid",73.099999999999994,2,-0.27899999999999991,null,null,null,null,null,null,null,null,"","","",""]
[null,null,2015,2,"Les hommes préfèrent les blondes","makkelijke tekst",84.84,2,-1.3356000000000003,null,null,null,null,null,null,null,null,"","","",""]
[null,null,2015,3,"Carat Duchatelet, c’est du solide !","tekst van gemiddelde moeilijkheid",67.86,9,0.19259999999999966,null,null,null,null,null,null,null,null,"","","",""]
[null,null,2015,4,"Major, orang-outan star","tekst van gemiddelde moeilijkheid",74.430000000000007,4,-0.39870000000000161,null,null,null,null,null,null,null,null,"","","",""]
[null,null,2015,5,"Les meilleures pralines du monde","tekst van gemiddelde moeilijkheid",61.42,1,0.77219999999999978,null,null,null,null,null,null,null,null,"","","",""]
[null,null,2015,6,"Christian Louboutin : « Mes chaussures sont une sorte","makkelijke tekst",77.23,7,-0.6507000000000005,null,null,null,null,null,null,null,null,"","","",""]
[null,null,2015,7,"Ma mission en Ethiopie","tekst van gemiddelde moeilijkheid",59.13,5,0.97829999999999906,null,null,null,null,null,null,null,null,"","","",""]
[null,null,2015,8,"Les poissons rouges ont-ils une mémoire ?","tekst van gemiddelde moeilijkheid",58.12,1,1.0692000000000004,null,null,null,null,null,null,null,null,"","","",""]
[null,null,2015,9,"Concours Lépine, lieu d’exposition magique","tekst van gemiddelde moeilijkheid",71.13,5,-0.10170000000000012,null,null,null,null,null,null,null,null,"","","",""]
[null,null,2015,10,"Où sont passées les petites filles ?","tekst van gemiddelde moeilijkheid",67.86,7,0.19259999999999966,null,null,null,null,null,null,null,null,"","","",""]
[null,null,2015,11,"Le repas, c’est sacro-saint !","tekst van gemiddelde moeilijkheid",73.75,5,-0.33750000000000036,null,null,null,null,null,null,null,null,"","","",""]
[null,null,2015,12,"« Notre croissance s’est accélérée depuis 50 ans »","tekst van gemiddelde moeilijkheid",53.56,2,1.4795999999999996,null,null,null,null,null,null,null,null,"","","",""]
[null,null,2016,1,"Paris made in China","tekst van gemiddelde moeilijkheid",69.223333333333329,1,6.9899999999999629E-2,null,null,null,null,null,null,null,null,{"$f":"IF($K68=\"ü\",$G68,\"\")","v":""},{"$f":"IF($K68=\"ü\",$H68,\"\")","v":""},{"$f":"IF($K68=\"ü\",$I68,\"\")","v":""},{"$f":"IF($K68=\"ü\",$G68*$H68,\"\")","v":""}]
[null,null,2016,2,"Coco Chanel","tekst van gemiddelde moeilijkheid",64.893333333333331,1,0.45960000000000001,null,null,null,null,null,null,null,null,"","","",""]
[null,null,2016,3,"Stromae","makkelijke tekst",86.693333333333328,6,-1.5024000000000006,null,null,null,null,null,null,null,null,"","","",""]
[null,null,2016,4,"Ils sont payés pour jouer",{"$f":"IF(G71>P$7,\"makkelijke tekst\",IF(G71<P$6,\"moeilijke tekst\",\"tekst van gemiddelde moeilijkheid\"))","v":"makkelijke tekst"},81.683333333333323,6,-1.051499999999999,null,null,null,null,null,null,null,null,"","","",""]
[null,null,2016,5,"Dans les coulisses de McDonald’s","tekst van gemiddelde moeilijkheid",66.473333333333329,9,0.31740000000000013,null,null,null,null,null,null,null,null,"","","",""]
[null,null,2016,6,"Un boulanger de Moselle remporte le Concours Lépine","tekst van gemiddelde moeilijkheid",69.683333333333323,4,2.850000000000108E-2,null,null,null,null,null,null,null,null,"","","",""]
[null,null,2016,7,"Pétanque","makkelijke tekst",85.573333333333323,2,-1.4015999999999984,null,null,null,null,null,null,null,null,"","","",""]
[null,null,2016,8,"Le vintage : une mode, un art de vivre","makkelijke tekst",80.193333333333328,6,-0.91740000000000066,null,null,null,null,null,null,null,null,"","","",""]
[null,null,2016,9,"Les 24 Heures du Mans","tekst van gemiddelde moeilijkheid",69.193333333333328,6,7.2599999999999554E-2,null,null,null,null,null,null,null,null,"","","",""]
[null,null,2016,10,"« Do you speak touriste ? »","tekst van gemiddelde moeilijkheid",57.953333333333326,6,1.0842000000000009,null,null,null,null,null,null,null,null,"","","",""]
[null,null,2016,11,"L’art de vivre en Pologne","makkelijke tekst",79.803333333333327,2,-0.88229999999999897,null,null,null,null,null,null,null,null,"","","",""]
[null,null,2017,1,"Souriez, vous êtes selfisé","makkelijke tekst",86.924444444444447,1,-1.523200000000001,null,null,null,null,null,null,null,null,"","","",""]
[null,null,2017,2,"Porter le pantalon à Paris","moeilijke tekst",19.274444444444438,1,4.5653000000000006,null,null,null,null,null,null,null,null,"","","",""]
[null,null,2017,3,"Le Carnaval, histoire d’une fête","tekst van gemiddelde moeilijkheid",72.444444444444443,4,-0.21999999999999975,null,null,null,null,null,null,null,null,"","","",""]
[null,null,2017,4,"L’autre Tour de France","tekst van gemiddelde moeilijkheid",73.044444444444437,6,-0.27400000000000002,null,null,null,null,null,null,null,null,"","","",""]
[null,null,2017,5,"A Lyon, rendez-vous avec la lumière","tekst van gemiddelde moeilijkheid",70.314444444444447,5,-2.8300000000000658E-2,null,null,null,null,null,null,null,null,"","","",""]
[null,null,2017,6,"L’Atelier du Griffon","tekst van gemiddelde moeilijkheid",65.49444444444444,3,0.40550000000000086,null,null,null,null,null,null,null,null,"","","",""]
[null,null,2017,7,"L’achat « en vrac » ","tekst van gemiddelde moeilijkheid",69.734444444444449,4,2.3899999999999366E-2,null,null,null,null,null,null,null,null,"","","",""]
[null,null,2017,8,"A la cour du Roi-Soleil","tekst van gemiddelde moeilijkheid",69.024444444444441,4,8.7799999999999656E-2,null,null,null,null,null,null,null,null,"","","",""]
[null,null,2017,9,"Une nouvelle espèce de zoo","makkelijke tekst",79.324444444444438,5,-0.83919999999999995,null,null,null,null,null,null,null,null,"","","",""]
[null,null,2017,10,"« En haut, tout est magique »","makkelijke tekst",83.574444444444438,4,-1.2216999999999993,null,null,null,null,null,null,null,null,"","","",""]
[null,null,2017,11,"Les épinards rendent-ils plus fort ?","moeilijke tekst",39.914444444444435,1,2.7077000000000009,null,null,null,null,null,null,null,null,"","","",""]
[null,null,2017,12,"Je lutte contre les préjugés","tekst van gemiddelde moeilijkheid",65.884444444444441,4,0.37040000000000095,null,null,null,null,null,null,null,null,"","","",""]
[null,null,2017,13,"Les Dîners en blanc","moeilijke tekst",47.074444444444438,4,2.0632999999999999,null,null,null,null,null,null,null,null,"","","",""]
[null,null,2017,14,"Les vêtements toxiques","makkelijke tekst",89.714444444444439,2,-1.7742999999999993,null,null,null,null,null,null,null,null,"","","",""]
[null,null,2018,1,"Qui a conçu le château de Chambord ?","tekst van gemiddelde moeilijkheid",61.444444444444436,1,0.77000000000000135,null,null,null,null,null,null,null,null,"","","",""]
[null,null,2018,2,"Marianne, symbole de la France","tekst van gemiddelde moeilijkheid",54.874444444444435,3,1.3613000000000008,null,null,null,null,null,null,null,null,"","","",""]
[null,null,2018,3,"L’étoile Michelin","tekst van gemiddelde moeilijkheid",76.384444444444441,3,-0.57459999999999933,null,null,null,null,null,null,null,null,"","","",""]
[null,null,2018,4,"L’or blanc de Guérande","tekst van gemiddelde moeilijkheid",67.454444444444434,4,0.22910000000000075,null,null,null,null,null,null,null,null,"","","",""]
[null,null,2018,5,"Véhicules anciens à Paris !?","makkelijke tekst",85.444444444444443,3,-1.3900000000000006,null,null,null,null,null,null,null,null,"","","",""]
[null,null,2018,6,"Vincent Munier, photographe de nature","makkelijke tekst",79.24444444444444,4,-0.83199999999999985,null,null,null,null,null,null,null,null,"","","",""]
[null,null,2018,7,"Route des vacances","tekst van gemiddelde moeilijkheid",60.324444444444438,6,0.87080000000000002,null,null,null,null,null,null,null,null,"","","",""]
[null,null,2018,8,"Poisson d’avril","tekst van gemiddelde moeilijkheid",58.904444444444437,3,0.99860000000000149,null,null,null,null,null,null,null,null,"","","",""]
[null,null,2018,9,"L’opéra-le-bol","tekst van gemiddelde moeilijkheid",69.594444444444449,3,3.6499999999999311E-2,null,null,null,null,null,null,null,null,"","","",""]
[null,null,2018,10,"Faut-il supprimer les zoos ?","tekst van gemiddelde moeilijkheid",72.384444444444441,7,-0.21459999999999901,null,null,null,null,null,null,null,null,"","","",""]
[null,null,2018,11,"Le Mont Saint-Michel","tekst van gemiddelde moeilijkheid",57.664444444444435,4,1.1102000000000007,null,null,null,null,null,null,null,null,"","","",""]
[null,null,2018,12,"Les ateliers fleurissent un peu partout","tekst van gemiddelde moeilijkheid",61.344444444444434,4,0.7790000000000008,null,null,null,null,null,null,null,null,"","","",""]
[null,null,2018,13,"Demain dans nos assiettes","moeilijke tekst",23.444444444444439,2,4.1900000000000004,null,null,null,null,null,null,null,null,"","","",""]
[null,null,2018,14,"Peut-on donner n’importe quel prénom à un enfant ?","tekst van gemiddelde moeilijkheid",52.444444444444436,1,1.58,null,null,null,null,null,null,null,null,"","","",""]
[null,null,2019,1,"Pourquoi Napoléon portait-il la main dans sa veste ?","tekst van gemiddelde moeilijkheid",76.555555555555557,1,-0.58999999999999986,null,null,null,null,null,null,null,null,"","","",""]
[null,null,2019,2,"« Une véritable ode à l’amour »","tekst van gemiddelde moeilijkheid",75.885555555555555,3,-0.52970000000000006,null,null,null,null,null,null,null,null,"","","",""]
[null,null,2019,3,"Johnny, Mohamed et Tarzan","tekst van gemiddelde moeilijkheid",59.165555555555557,6,0.97509999999999941,null,null,null,null,null,null,null,null,"","","",""]
[null,null,2019,4,"Un facteur pas comme les autres","tekst van gemiddelde moeilijkheid",63.665555555555557,8,0.57010000000000005,null,null,null,null,null,null,null,null,"","","",""]
[null,null,2019,5,"Le numérique au féminin","tekst van gemiddelde moeilijkheid",55.415555555555557,5,1.3125999999999998,null,null,null,null,null,null,null,null,"","","",""]
[null,null,2019,6,"« Il y a de moins en moins de banquise »","tekst van gemiddelde moeilijkheid",52.995555555555555,6,1.5304000000000002,null,null,null,null,null,null,null,null,"","","",""]
[null,null,2019,7,"« Être parfait, ce serait … parfait ? »","tekst van gemiddelde moeilijkheid",51.305555555555557,5,1.6825000000000001,null,null,null,null,null,null,null,null,"","","",""]
[null,null,2019,8,"Paris, Ville Lumière","tekst van gemiddelde moeilijkheid",56.915555555555557,3,1.1776,null,null,null,null,null,null,null,null,"","","",""]
[null,null,2019,9,"Tekst 9","moeilijke tekst",21.555555555555557,1,4.3599999999999994,null,null,null,null,null,null,null,null,"","","",""]
[null,null,2019,10,"Paradis artificiel de la fleur","tekst van gemiddelde moeilijkheid",50.635555555555555,4,1.7427999999999999,null,null,null,null,null,null,null,null,"","","",""]
[null,null,2019,11,"Jusqu’où iront les touristes ?","tekst van gemiddelde moeilijkheid",52.555555555555557,2,1.5699999999999994,null,null,null,null,null,null,null,null,"","","",""]
[null,null,2019,12,"« Le spectacle historique a tout bon ! »","tekst van gemiddelde moeilijkheid",49.375555555555557,4,1.8562000000000003,null,null,null,null,null,null,null,null,"","","",""]
[null,null,2019,13,"13  Des murs toujours plus nombreux","tekst van gemiddelde moeilijkheid",58.465555555555554,2,1.0381,null,null,null,null,null,null,null,null,"","","",""]
[null,null,2021,1,"Napoléon était-il petit ?","moeilijke tekst",34.880000000000003,1,3.1607999999999996,null,null,null,null,null,null,null,null,"","","",""]
[null,null,2021,2,"Le soldat inconnu","tekst van gemiddelde moeilijkheid",70.56,2,-5.0399999999999778E-2,null,null,null,null,null,null,null,null,"","","",""]
[null,null,2021,3,"Le béret","tekst van gemiddelde moeilijkheid",54.78,5,1.3697999999999997,null,null,null,null,null,null,null,null,"","","",""]
[null,null,2021,4,"Les savants de la Tour Eiffel","moeilijke tekst",45.08,3,2.2427999999999999,null,null,null,null,null,null,null,null,"","","",""]
[null,null,2021,5,"Une mangue du Mali","tekst van gemiddelde moeilijkheid",62.64,3,0.66239999999999988,null,null,null,null,null,null,null,null,"","","",""]
[null,null,2021,6,"L’école des Gobelins","tekst van gemiddelde moeilijkheid",67.819999999999993,5,0.19620000000000104,null,null,null,null,null,null,null,null,"","","",""]
[null,null,2021,7,"Où sont passés nos moineaux ?","tekst van gemiddelde moeilijkheid",66.58,3,0.30779999999999941,null,null,null,null,null,null,null,null,"","","",""]
[null,null,2021,8,"« Du jamais-vu dans l’histoire »","moeilijke tekst",37.86,5,2.8925999999999998,null,null,null,null,null,null,null,null,"","","",""]
[null,null,2021,9,"Un urinoir baptisé « Fontaine »","tekst van gemiddelde moeilijkheid",55.3,6,1.3229999999999995,null,null,null,null,null,null,null,null,"","","",""]
[null,null,2021,10,"Les jeunes Français et la lecture","tekst van gemiddelde moeilijkheid",50.48,5,1.7568000000000001,null,null,null,null,null,null,null,null,"","","",""]
[null,null,2021,11,"L’Europe s’attaque au plastique jetable","tekst van gemiddelde moeilijkheid",52.53,3,1.5723000000000003,null,null,null,null,null,null,null,null,"","","",""]
[null,null,2021,12,"Se prendre en photo dans la boutique","moeilijke tekst",47.32,4,2.0411999999999999,null,null,null,null,null,null,null,null,"","","",""]
[null,null,2022,1,"Un poisson écolo","tekst van gemiddelde moeilijkheid",53.95,1,1.4444999999999997,null,null,null,null,null,null,null,null,{"$f":"IF($K132=\"ü\",$G132,\"\")","v":""},{"$f":"IF($K132=\"ü\",$H132,\"\")","v":""},{"$f":"IF($K132=\"ü\",$I132,\"\")","v":""},{"$f":"IF($K132=\"ü\",$G132*$H132,\"\")","v":""}]
[null,null,2022,2,"La boule de pétanque Obut","tekst van gemiddelde moeilijkheid",60.91,3,0.81810000000000027,null,null,null,null,null,null,null,null,"","","",""]
[null,null,2022,3,"La brasserie la plus mythique de Paris","tekst van gemiddelde moeilijkheid",72.41,5,-0.21689999999999987,null,null,null,null,null,null,null,null,"","","",""]
[null,null,2022,4,"Le manga",{"$f":"IF(G135>P$7,\"makkelijke tekst\",IF(G135<P$6,\"moeilijke tekst\",\"tekst van gemiddelde moeilijkheid\"))","v":"tekst van gemiddelde moeilijkheid"},58.93,4,0.99629999999999974,null,null,null,null,null,null,null,null,"","","",""]
[null,null,2022,5,"Le marketing de l’influence","tekst van gemiddelde moeilijkheid",51.05,7,1.7054999999999998,null,null,null,null,null,null,null,null,"","","",""]
[null,null,2022,6,"Le dîner en blanc fête ses 30 ans","tekst van gemiddelde moeilijkheid",52.81,5,1.5470999999999995,null,null,null,null,null,null,null,null,"","","",""]
[null,null,2022,7,"Les débuts des vacances à la plage","tekst van gemiddelde moeilijkheid",50.64,5,1.7423999999999999,null,null,null,null,null,null,null,null,"","","",""]
[null,null,2022,8,"« Une idée de génie ! »","tekst van gemiddelde moeilijkheid",62.72,1,0.65519999999999978,null,null,null,null,null,null,null,null,"","","",""]
[null,null,2022,9,"Un cuir à croquer","moeilijke tekst",32.229999999999997,1,3.3992999999999998,null,null,null,null,null,null,null,null,"","","",""]
[null,null,2022,10,"La Pyramide du Louvre","tekst van gemiddelde moeilijkheid",56.65,3,1.2015000000000002,null,null,null,null,null,null,null,null,"","","",""]
[null,null,2022,11,"De l’urine dans la piscine","tekst van gemiddelde moeilijkheid",52.82,4,1.5461999999999998,null,null,null,null,null,null,null,null,"","","",""]
[null,null,2022,12,"Le plastique, pas chic ?!","makkelijke tekst",77.430000000000007,2,-0.66870000000000118,null,null,null,null,null,null,null,null,"","","",""]
[null,null,2022,13,"L’alcool interdit dans les gorges de l’Ardèche","tekst van gemiddelde moeilijkheid",56.19,2,1.2428999999999997,null,null,null,null,null,null,null,null,"","","",""]
[null,null,2022,14,"Des papiers pour un pompier","tekst van gemiddelde moeilijkheid",72.7,2,-0.24300000000000122,null,null,null,null,null,null,null,null,"","","",""]
[null,null,2023,1,"EnjoyPhoenix, youtubeuse","tekst van gemiddelde moeilijkheid",65,1,0.45000000000000018,null,null,null,null,null,null,null,null,"","","",""]
[null,null,2023,2,"Les Néerlandais, champions en taille","tekst van gemiddelde moeilijkheid",75,5,-0.45000000000000018,null,null,null,null,null,null,null,null,"","","",""]
[null,null,2023,3,"« Le Baiser de l’Hôtel de Ville »","tekst van gemiddelde moeilijkheid",69,5,8.9999999999999858E-2,null,null,null,null,null,null,null,null,"","","",""]
[null,null,2023,4,"Aidons les hérissons","tekst van gemiddelde moeilijkheid",70,5,0,null,null,null,null,null,null,null,null,"","","",""]
[null,null,2023,5,"Un moyen ludique de pratiquer le parkour","tekst van gemiddelde moeilijkheid",59,5,0.99000000000000021,null,null,null,null,null,null,null,null,"","","",""]
[null,null,2023,6,"« J’agis pour que l’Everest ne soit plus une poubelle »","tekst van gemiddelde moeilijkheid",65,7,0.45000000000000018,null,null,null,null,null,null,null,null,"","","",""]
[null,null,2023,7,"Malin comme un singe","tekst van gemiddelde moeilijkheid",68,4,0.17999999999999972,null,null,null,null,null,null,null,null,"","","",""]
[null,null,2023,8,"Combiner le sport et l’écologie, c’est possible","tekst van gemiddelde moeilijkheid",65,4,0.45000000000000018,null,null,null,null,null,null,null,null,"","","",""]
[null,null,2023,9,"Plus de 3 millions de Français accros au journal intime","tekst van gemiddelde moeilijkheid",59,7,0.99000000000000021,null,null,null,null,null,null,null,null,"","","",""]
[null,null,2023,10,"La seconde vie des églises","moeilijke tekst",46,4,2.16,null,null,null,null,null,null,null,null,"","","",""]
[null,null,2023,11,"L’Obélisque de Paris, bijou de la place de la Concorde","tekst van gemiddelde moeilijkheid",69,2,8.9999999999999858E-2,null,null,null,null,null,null,null,null,"","","",""]
[null,null,2023,12,"Le menu préféré des vaches","moeilijke tekst",31,1,3.51,null,null,null,null,null,null,null,null,"","","",""]

{"sheet":"geselecteerde teksten","index":1,"n_rows":10,"n_cols":7,"rows_kept":10,"cut":false,"hidden":false,"merged":[[9,4,9,5],[11,4,11,5],[10,4,10,5]]}
[null,"Frans havo"]
[]
[null,null,"inhoud van de toets"]
[]
[null,null,"schaallengte",null,{"$f":"'selecteer de teksten'!P12","v":0}]
[null,null,"N-term",null,{"$f":"'selecteer de teksten'!P15","v":1}]
[]
[null,null,"teksten in chronologische volgorde"]
[]
[null,null,"jaar","tekst","omschrijving",null,"punten"]

{"sheet":"omzettingstabel","index":2,"n_rows":47,"n_cols":16,"rows_kept":47,"cut":false,"hidden":false,"merged":[]}
[]
[null,"Vaknaam:",null,null,null,{"$f":"'selecteer de teksten'!B1","v":"Frans havo"}]
[null,"Schaallengte:",null,null,null,45]
[null,"Normeringsterm:",null,null,null,1.4]
[]
[null,"Score","Cijfer",null,"Score","Cijfer",null,null,null,null,null,null,null,null,null,"####"]
[]
[null,0,"1,0",null,40,"9,4"]
[null,1,"1,4",null,41,"9,6"]
[null,2,"1,8",null,42,"9,7"]
[null,3,"2,0",null,43,"9,8"]
[null,4,"2,2",null,44,"9,9"]
[null,5,"2,4",null,45,"10,0"]
[null,6,"2,6"]
[null,7,"2,8"]
[null,8,"3,0"]
[null,9,"3,2"]
[null,10,"3,4"]
[null,11,"3,6"]
[null,12,"3,8"]
[null,13,"4,0"]
[null,14,"4,2"]
[null,15,"4,4"]
[null,16,"4,6"]
[null,17,"4,8"]
[null,18,"5,0"]
[null,19,"5,2"]
[null,20,"5,4"]
[null,21,"5,6"]
[null,22,"5,8"]
[null,23,"6,0"]
[null,24,"6,2"]
[null,25,"6,4"]
[null,26,"6,6"]
[null,27,"6,8"]
[null,28,"7,0"]
[null,29,"7,2"]
[null,30,"7,4"]
[null,31,"7,6"]
[null,32,"7,8"]
[null,33,"8,0"]
[null,34,"8,2"]
[null,35,"8,4"]
[null,36,"8,6"]
[null,37,"8,8"]
[null,38,"9,0"]
[null,39,"9,2"]